fUST/lending_fUST_20241231
["ID","MTS","AMOUNT","RATE_DAILY","PERIOD"]
[347275414,1735650644735,-500.0,0.00020821,3]
[347275415,1735650644744,-666.44,0.00020821,3]
[347275416,1735650644753,-584.53986931,0.00020821,3]
[347275417,1735650644762,-500.0,0.00020821,3]
[347275418,1735650644771,-500.0,0.00020821,3]
[347275419,1735650644781,-500.0,0.00020821,3]
[347275420,1735650644791,-500.0,0.00020821,3]
[347275421,1735650644801,-500.0,0.00020821,3]
[347275422,1735650644810,-500.0,0.00020821,3]
[347275423,1735650644820,-500.0,0.00020821,3]
[347275424,1735650644830,-733.24,0.00020821,3]
[347275425,1735650644839,-989.85,0.00020821,3]
[347275426,1735650644848,-500.0,0.00020821,3]
[347275427,1735650644857,-500.0,0.00020821,3]
[347275428,1735650644867,-500.0,0.00020821,3]
[347275429,1735650644876,-500.0,0.00020821,3]
[347275430,1735650644885,-180.39930254,0.00020821,3]
[347275431,1735650644894,-500.0,0.00020821,3]
[347275432,1735650644904,-500.0,0.00020821,3]
[347275433,1735650644913,-500.0,0.00020821,3]
[347275434,1735650644922,-500.0,0.00020821,3]
[347275435,1735650644932,-500.0,0.00020821,2]
[347275436,1735650644941,-500.0,0.00020821,3]
[347275437,1735650644951,-779.85,0.00020821,3]
[347275438,1735650644959,-500.0,0.00020821,3]
[347275439,1735650644968,-500.0,0.00020821,3]
[347275440,1735650644978,-1805.5,0.00020821,3]
[347275441,1735650644988,-500.0,0.00020821,3]
[347275442,1735650644998,-1298.15,0.00020821,3]
[347275443,1735650645007,-500.0,0.00020821,3]
[347275444,1735650645017,-500.0,0.00020821,3]
[347275445,1735650645026,-649.24,0.00020821,3]
[347275446,1735650645036,-826.12,0.00020821,3]
[347275447,1735650645045,-500.0,0.00020821,3]
[347275448,1735650645055,-590.79,0.00020821,3]
[347275449,1735650645064,-151.0,0.000209,3]
[347275450,1735650645074,-263.383689,0.00020904,2]
[347275451,1735650645083,-3000.0,0.00021,2]
[347275452,1735650645093,-407.38,0.00021,2]
[347275453,1735650645102,-300.0,0.00021,9]
[347275454,1735650645112,-3000.0,0.0002101,2]
[347275455,1735650645121,-3000.0,0.0002102,2]
[347275456,1735650645131,-1500.0,0.00021022,2]
[347275457,1735650645141,-153.0,0.00021027,2]
[347275458,1735650645152,-153.0,0.00021027,2]
[347275459,1735650645161,-153.0,0.00021027,2]
[347275460,1735650645171,-153.0,0.00021027,2]
[347275461,1735650645180,-153.0,0.00021027,2]
[347275462,1735650645190,-153.0,0.00021027,2]
[347275463,1735650645199,-153.0,0.00021027,2]
[347275464,1735650645209,-153.0,0.00021027,2]
[347275465,1735650645218,-153.0,0.00021027,2]
[347275466,1735650645227,-153.0,0.00021027,2]
[347275467,1735650645237,-153.0,0.00021027,2]
[347275468,1735650645246,-153.0,0.00021027,2]
[347275469,1735650645256,-153.0,0.00021027,2]
[347275470,1735650645265,-153.0,0.00021027,2]
[347275472,1735650645335,-153.0,0.00021027,2]
[347275473,1735650645345,-153.0,0.00021027,2]
[347275474,1735650645355,-153.0,0.00021027,2]
[347275476,1735650645365,-153.0,0.00021027,2]
[347275478,1735650645374,-153.0,0.00021027,2]
[347275479,1735650645384,-153.0,0.00021027,2]
[347275481,1735650645394,-153.0,0.00021027,2]
[347275483,1735650645404,-153.0,0.00021027,2]
[347275485,1735650645413,-153.0,0.00021027,2]
[347275488,1735650645423,-153.0,0.00021027,2]
[347275490,1735650645432,-153.0,0.00021027,2]
[347275492,1735650645441,-153.0,0.00021027,2]
[347275494,1735650645451,-3000.0,0.0002103,2]
[347275496,1735650645460,-3000.0,0.0002104,2]
[347275498,1735650645470,-548.886,0.0002105,2]
[347275500,1735650645480,-3000.0,0.0002105,2]
[347275501,1735650645489,-5850.0,0.0002106,2]
[347275502,1735650645498,-500.0,0.00021095,3]
[347275503,1735650645508,-500.0,0.00021095,3]
[347275504,1735650645517,-500.0,0.00021095,3]
[347275505,1735650645526,-500.0,0.00021095,3]
[347275506,1735650645535,-500.0,0.00021095,3]
[347275507,1735650645544,-500.0,0.00021095,3]
[347275508,1735650645553,-500.0,0.00021095,3]
[347275509,1735650645563,-500.0,0.00021095,3]
[347275510,1735650645573,-500.0,0.00021095,3]
[347275512,1735650645582,-500.0,0.00021095,3]
[347275514,1735650645592,-500.0,0.00021095,3]
[347275516,1735650645601,-500.0,0.00021095,3]
[347275517,1735650645611,-500.0,0.00021095,3]
[347275519,1735650645620,-500.0,0.00021095,3]
[347275520,1735650645629,-1120.68,0.00021095,3]
[347275522,1735650645641,-500.0,0.00021095,3]
[347275524,1735650645654,-500.0,0.00021095,3]
[347275526,1735650645664,-500.0,0.00021095,3]
[347275528,1735650645674,-592.35253263,0.00021095,3]
[347275529,1735650645683,-500.0,0.00021095,3]
[347275530,1735650645693,-349.22896635,0.00021095,3]
[347275531,1735650645703,-500.0,0.00021095,3]
[347275532,1735650645712,-500.0,0.00021095,3]
[347275533,1735650645722,-500.0,0.00021095,3]
[347275534,1735650645732,-500.0,0.00021095,3]
[347275535,1735650645741,-500.0,0.00021095,3]
[347275536,1735650645750,-500.0,0.00021095,3]
[347275538,1735650645760,-503.0050414,0.00021095,3]
[347275539,1735650645769,-5973.0,0.00021095,3]
[347275540,1735650645779,-500.0,0.00021095,3]
[347275541,1735650645788,-500.0,0.00021095,3]
[347275542,1735650645797,-500.0,0.00021095,3]
[347275543,1735650645806,-500.0,0.00021095,3]
[347275544,1735650645816,-1678.38,0.00021095,3]
[347275546,1735650645825,-1859.01,0.00021095,3]
[347275548,1735650645834,-500.0,0.00021095,3]
[347275549,1735650645844,-500.0,0.00021095,3]
[347275551,1735650645853,-500.0,0.00021095,3]
[347275552,1735650645862,-500.0,0.00021095,3]
[347275554,1735650645871,-500.0,0.00021095,3]
[347275555,1735650645880,-500.0,0.00021095,3]
[347275556,1735650645890,-699.41,0.00021095,3]
[347275557,1735650645900,-500.0,0.00021095,2]
[347275558,1735650645909,-500.0,0.00021095,3]
[347275559,1735650645919,-500.0,0.00021095,3]
[347275560,1735650645928,-613.67,0.00021095,3]
[347275561,1735650645937,-500.0,0.00021095,3]
[347275562,1735650645946,-666.44,0.00021095,3]
[347275563,1735650645955,-500.0,0.00021095,3]
[347275564,1735650645964,-500.0,0.00021095,3]
[347275565,1735650645974,-500.0,0.00021095,3]
[347275566,1735650645983,-609.41906146,0.00021095,3]
[347275567,1735650645992,-500.0,0.00021095,3]
[347275568,1735650646001,-500.0,0.00021095,3]
[347275570,1735650646011,-500.0,0.00021095,3]
[347275572,1735650646020,-733.24,0.00021095,3]
[347275574,1735650646029,-989.85,0.00021095,3]
[347275576,1735650646039,-500.0,0.00021095,3]
[347275578,1735650646048,-500.0,0.00021095,3]
[347275580,1735650646057,-500.0,0.00021095,3]
[347275582,1735650646066,-500.0,0.00021095,3]
[347275584,1735650646075,-500.0,0.00021095,3]
[347275585,1735650646084,-500.0,0.00021095,3]
[347275586,1735650646093,-500.0,0.00021095,3]
[347275587,1735650646103,-486.8,0.00021095,2]
[347275588,1735650646112,-500.0,0.00021095,3]
[347275589,1735650646121,-779.85,0.00021095,3]
[347275590,1735650646130,-500.0,0.00021095,3]
[347275591,1735650646139,-500.0,0.00021095,3]
[347275592,1735650646147,-1805.5,0.00021095,3]
[347275593,1735650646156,-500.0,0.00021095,3]
[347275594,1735650646166,-1298.15,0.00021095,3]
[347275595,1735650646175,-500.0,0.00021095,3]
[347275596,1735650646184,-500.0,0.00021095,3]
[347275597,1735650646193,-649.24,0.00021095,3]
[347275598,1735650646202,-826.12,0.00021095,3]
[347275599,1735650646212,-590.79,0.00021095,3]
[347275600,1735650646221,-263.383689,0.00021096,2]
[347275601,1735650646230,-151.0,0.000212,4]
[347275602,1735650646239,-691.2276305,0.00021205,2]
[347275603,1735650646248,-578.90035119,0.00021269,2]
[347275604,1735650646257,-263.383689,0.00021288,2]
[347275605,1735650646266,-310.716248,0.00021342,2]
[347275606,1735650646275,-500.0,0.00021368,3]
[347275607,1735650646285,-500.0,0.00021369,3]
[347275608,1735650646294,-500.0,0.00021369,3]
[347275609,1735650646303,-500.0,0.00021369,3]
[347275610,1735650646312,-500.0,0.00021369,3]
[347275611,1735650646322,-500.0,0.00021369,3]
[347275612,1735650646331,-500.0,0.00021369,3]
[347275613,1735650646340,-500.0,0.00021369,3]
[347275614,1735650646349,-500.0,0.00021369,3]
[347275615,1735650646358,-627.72666879,0.00021369,3]
[347275616,1735650646421,-500.0,0.00021369,3]
[347275617,1735650646431,-500.0,0.00021369,3]
[347275618,1735650646440,-500.0,0.00021369,3]
[347275619,1735650646449,-500.0,0.00021369,3]
[347275620,1735650646458,-500.0,0.00021369,3]
[347275621,1735650646469,-1120.68,0.00021369,3]
[347275622,1735650646481,-500.0,0.00021369,3]
[347275623,1735650646492,-500.0,0.00021369,3]
[347275624,1735650646504,-500.0,0.00021369,3]
[347275625,1735650646515,-500.0,0.00021369,3]
[347275626,1735650646528,-500.0,0.00021369,3]
[347275627,1735650646539,-500.0,0.00021369,3]
[347275628,1735650646552,-500.0,0.00021369,3]
[347275629,1735650646562,-500.0,0.00021369,3]
[347275630,1735650646571,-500.0,0.00021369,3]
[347275631,1735650646580,-500.0,0.00021369,3]
[347275632,1735650646590,-5973.0,0.00021369,3]
[347275633,1735650646599,-156.15478107,0.00021369,3]
[347275634,1735650646608,-500.0,0.00021369,3]
[347275635,1735650646618,-500.0,0.00021369,3]
[347275636,1735650646627,-500.0,0.00021369,3]
[347275637,1735650646637,-1678.38,0.00021369,3]
[347275638,1735650646647,-1859.01,0.00021369,3]
[347275639,1735650646659,-500.0,0.00021369,3]
[347275640,1735650646668,-500.0,0.00021369,3]
[347275641,1735650646677,-500.0,0.00021369,3]
[347275642,1735650646686,-500.0,0.00021369,3]
[347275643,1735650646695,-500.0,0.00021369,3]
[347275644,1735650646706,-500.0,0.00021369,3]
[347275645,1735650646715,-699.41,0.00021369,3]
[347275646,1735650646724,-500.0,0.00021369,2]
[347275647,1735650646733,-500.0,0.00021369,3]
[347275648,1735650646743,-500.0,0.00021369,3]
[347275649,1735650646752,-613.67,0.00021369,3]
[347275650,1735650646761,-500.0,0.00021369,3]
[347275651,1735650646770,-666.44,0.00021369,3]
[347275652,1735650646779,-500.0,0.00021369,3]
[347275653,1735650646788,-500.0,0.00021369,3]
[347275654,1735650646797,-500.0,0.00021369,3]
[347275655,1735650646806,-500.0,0.00021369,3]
[347275656,1735650646816,-500.0,0.00021369,3]
[347275657,1735650646825,-500.0,0.00021369,3]
[347275658,1735650646834,-733.24,0.00021369,3]
[347275659,1735650646844,-989.85,0.00021369,3]
[347275660,1735650646853,-500.0,0.00021369,3]
[347275661,1735650646862,-500.0,0.00021369,3]
[347275662,1735650646871,-500.0,0.00021369,3]
[347275663,1735650646881,-500.0,0.00021369,3]
[347275664,1735650646890,-500.0,0.00021369,3]
[347275665,1735650646900,-500.0,0.00021369,3]
[347275666,1735650646914,-500.0,0.00021369,3]
[347275667,1735650646931,-500.0,0.00021369,3]
[347275668,1735650646945,-779.85,0.00021369,3]
[347275669,1735650646960,-500.0,0.00021369,3]
[347275670,1735650646977,-493.85,0.00021369,3]
[347275671,1735650646993,-1805.5,0.00021369,3]
[347275672,1735650647008,-303.46014395,0.00021369,3]
[347275673,1735650647022,-1298.15,0.00021369,3]
[347275674,1735650647037,-500.0,0.00021369,3]
[347275675,1735650647050,-500.0,0.00021369,3]
[347275676,1735650647062,-649.24,0.00021369,3]
[347275677,1735650647079,-826.12,0.00021369,3]
[347275678,1735650647094,-590.79,0.00021369,3]
[347275679,1735650647111,-151.0,0.000214,3]
[347275680,1735650647126,-6941.45,0.000214,2]
[347275681,1735650647138,-2395.54,0.000214,2]
[347275682,1735650647156,-8792.57,0.000214,2]
[347275683,1735650647168,-263.383689,0.00021479,2]
[347275684,1735650647182,-500.0,0.00021643,3]
[347275685,1735650647195,-500.0,0.00021643,3]
[347275686,1735650647207,-500.0,0.00021643,3]
[347275687,1735650647221,-500.0,0.00021643,3]
[347275688,1735650647234,-189.86012679,0.00021643,3]
[347275689,1735650647246,-500.0,0.00021643,3]
[347275690,1735650647259,-500.0,0.00021643,3]
[347275691,1735650647272,-500.0,0.00021643,3]
[347275692,1735650647285,-500.0,0.00021643,3]
[347275693,1735650647298,-616.19,0.00021643,3]
[347275694,1735650647310,-500.0,0.00021643,3]
[347275695,1735650647323,-1120.68,0.00021643,3]
[347275696,1735650647336,-500.0,0.00021643,3]
[347275697,1735650647349,-628.28981737,0.00021643,3]
[347275698,1735650647360,-500.0,0.00021643,3]
[347275699,1735650647373,-500.0,0.00021643,3]
[347275700,1735650647386,-500.0,0.00021643,3]
[347275701,1735650647398,-500.0,0.00021643,3]
[347275702,1735650647411,-500.0,0.00021643,3]
[347275703,1735650647423,-500.0,0.00021643,3]
[347275704,1735650647436,-561.83283761,0.00021643,3]
[347275705,1735650647449,-5973.0,0.00021643,3]
[347275706,1735650647462,-308.68632976,0.00021643,3]
[347275707,1735650647474,-500.0,0.00021643,3]
[347275708,1735650647487,-500.0,0.00021643,3]
[347275709,1735650647500,-1678.38,0.00021643,3]
[347275710,1735650647513,-1859.01,0.00021643,3]
[347275711,1735650647526,-500.0,0.00021643,3]
[347275712,1735650647539,-500.0,0.00021643,3]
[347275713,1735650647552,-500.0,0.00021643,3]
[347275714,1735650647564,-500.0,0.00021643,3]
[347275715,1735650647576,-500.0,0.00021643,3]
[347275716,1735650647588,-699.41,0.00021643,3]
[347275717,1735650647603,-500.0,0.00021643,2]
[347275718,1735650647699,-500.0,0.00021643,3]
[347275719,1735650647708,-613.67,0.00021643,3]
[347275720,1735650647718,-500.0,0.00021643,3]
[347275721,1735650647727,-666.44,0.00021643,3]
[347275722,1735650647739,-500.0,0.00021643,3]
[347275723,1735650647748,-500.0,0.00021643,3]
[347275724,1735650647757,-500.0,0.00021643,3]
[347275725,1735650647767,-500.0,0.00021643,3]
[347275726,1735650647777,-500.0,0.00021643,3]
[347275727,1735650647786,-500.0,0.00021643,3]
[347275728,1735650647795,-261.98389623,0.00021643,3]
[347275729,1735650647921,-471.25610377,0.00021643,3]
[347275730,1735650647930,-989.85,0.00021643,3]
[347275731,1735650647940,-67.47790227,0.00021643,3]
[347275732,1735650647951,-432.52209773,0.00021643,3]
[347275733,1735650647961,-500.0,0.00021643,3]
[347275734,1735650647972,-218.844367,0.00021643,3]
[347275735,1735650647983,-500.0,0.00021643,3]
[347275736,1735650647992,-500.0,0.00021643,3]
[347275737,1735650648001,-500.0,0.00021643,3]
[347275738,1735650648011,-500.0,0.00021643,3]
[347275739,1735650648020,-500.0,0.00021643,3]
[347275740,1735650648029,-779.85,0.00021643,3]
[347275741,1735650648038,-500.0,0.00021643,3]
[347275742,1735650648048,-499.0,0.00021643,4]
[347275743,1735650648057,-1805.5,0.00021643,3]
[347275744,1735650648066,-1298.15,0.00021643,3]
[347275745,1735650648075,-500.0,0.00021643,3]
[347275746,1735650648085,-500.0,0.00021643,3]
[347275747,1735650648094,-649.24,0.00021643,3]
[347275748,1735650648103,-747.96186045,0.00021643,3]
[347275749,1735650648115,-78.15813955,0.00021643,3]
[347275750,1735650648125,-590.79,0.00021643,3]
[347275751,1735650648134,-263.383689,0.00021671,2]
[347275752,1735650648144,-151.0,0.000217,4]
[347275753,1735650648155,-139676.66817141,0.0002185,2]
[347275754,1735650648482,-301.79,0.00019178,2]
[347275755,1735650648494,-198.21,0.00019178,2]
[347275756,1735650648503,-264.5579974,0.00019178,2]
[347275757,1735650648515,-235.4420026,0.00019178,2]
[347275758,1735650648525,-500.0,0.00019178,2]
[347275759,1735650648535,-500.0,0.00019178,2]
[347275760,1735650648545,-245.90635654,0.00019451,2]
[347275761,1735650648554,-500.0,0.00019451,2]
[347275762,1735650648564,-514.72939935,0.00019451,2]
[347275763,1735650648573,-500.0,0.00019451,2]
[347275764,1735650648583,-228.7799154,0.00019451,2]
[347275765,1735650648592,-2317.33674415,0.0002185,2]
[347275766,1735650648603,-44686.1864683,0.0002185,2]
[347275767,1735650648615,-709.19836559,0.0002185,2]
[347275768,1735650648626,-31319.11942206,0.0002185,2]
[347275769,1735650648637,-159374.25266987,0.0002185,2]
[347275770,1735650648755,-1533.80926727,0.00018986,2]
[347275771,1735650648765,-500.0,0.00019178,2]
[347275772,1735650648775,-500.0,0.00019178,2]
[347275773,1735650648784,-507.05135738,0.00019452,3]
[347275774,1735650648794,-1549.6793988,0.0002185,2]
[347275775,1735650648805,-350.4999995,0.0002185,2]
[347275776,1735650648817,-386.74657307,0.0002185,2]
[347275777,1735650648846,-5551.41175969,0.0002185,2]
[347275778,1735650903140,157.08215093,9.249e-05,2]
[347275798,1735651721801,499.999999,0.0002218,120]
[347275804,1735651753204,-247.977683,0.00013023,2]
[347275805,1735651753228,-72.34855335,0.00013155,2]
[347275829,1735651832161,-175.62912965,0.00012893,2]
[347275830,1735651832171,-175.62912965,0.00013023,2]
[347275831,1735651832180,-247.977683,0.00013973,2]
[347275832,1735651832190,-201.4797291,0.00017265,2]
[347275833,1735651832199,-7783.3791424,0.00017387,2]
[347275834,1735651832208,-300.0,0.00017509,2]
[347275835,1735651832218,-3932.39628049,0.0001751,2]
[347275872,1735651833598,-11373.85005004,0.0001751,2]
[347275873,1735651833610,-9593.75366947,0.0001751,2]
[347275874,1735651833620,-186.90332613,0.00017577,2]
[347275875,1735651833630,-319.0263002,0.00017677,2]
[347275876,1735651833640,-2785.3219245,0.00017952,2]
[347275877,1735651833650,-600.0,0.00018,2]
[347275878,1735651833660,-384.84894945,0.00018,2]
[347275880,1735651833670,-420.0,0.00019114,2]
[347275882,1735651833679,-162.283,0.00019177,2]
[347275884,1735651833688,-500.0,0.00019178,2]
[347275885,1735651833797,-505.01436801,0.00019178,2]
[347275886,1735651833808,-500.0,0.00019178,2]
[347275887,1735651833832,-500.0,0.00019178,2]
[347275888,1735651833842,-500.0,0.00019178,2]
[347275889,1735651833853,-502.97083055,0.00019178,2]
[347275890,1735651833864,-504.5490993,0.00019178,2]
[347275891,1735651833874,-500.0,0.00019178,2]
[347275892,1735651833883,-500.0,0.00019178,2]
[347275893,1735651833893,-503.95649468,0.00019178,2]
[347275894,1735651833903,-613.99,0.00019178,2]
[347275895,1735651833913,-500.0,0.00019178,2]
[347275896,1735651833923,-500.0,0.00019178,2]
[347275897,1735651833933,-150.71352695,0.00019178,2]
[347275898,1735651833942,-500.0,0.00019178,2]
[347275899,1735651833953,-500.0,0.00019178,2]
[347275900,1735651833962,-504.44423283,0.00019178,2]
[347275901,1735651833972,-503.62403955,0.00019178,2]
[347275902,1735651833982,-500.0,0.00019178,2]
[347275903,1735651833992,-500.0,0.00019178,2]
[347275904,1735651834002,-500.0,0.00019178,2]
[347275905,1735651834012,-506.72200822,0.00019178,2]
[347275906,1735651834023,-500.0,0.00019178,2]
[347275907,1735651834033,-517.36292727,0.00019178,2]
[347275908,1735651834043,-500.0,0.00019178,2]
[347275909,1735651834053,-500.0,0.00019178,2]
[347275910,1735651834063,-500.0,0.00019178,2]
[347275911,1735651834073,-500.71518819,0.00019178,2]
[347275912,1735651834082,-501.87315401,0.00019178,2]
[347275913,1735651834092,-500.0,0.00019178,2]
[347275914,1735651834102,-500.0,0.00019178,2]
[347275915,1735651834112,-253.44615797,0.00019178,2]
[347275916,1735651834122,-500.0,0.00019178,2]
[347275917,1735651834132,-500.0,0.00019178,2]
[347275918,1735651834142,-500.0,0.00019178,2]
[347275919,1735651834154,-500.0,0.00019178,2]
[347275920,1735651834165,-500.0,0.00019178,2]
[347275921,1735651834174,-500.0,0.00019178,2]
[347275922,1735651834184,-500.0,0.00019178,2]
[347275923,1735651834193,-500.0,0.00019178,2]
[347275924,1735651834203,-205.20981138,0.00019178,2]
[347275925,1735651834213,-500.0,0.00019178,2]
[347275926,1735651834223,-402.95961436,0.00019178,2]
[347275927,1735651834234,-500.0,0.00019178,2]
[347275928,1735651834244,-500.0,0.00019178,2]
[347275929,1735651834254,-500.0,0.00019178,2]
[347275930,1735651834264,-534.22328131,0.00019178,2]
[347275931,1735651834273,-500.0,0.00019178,2]
[347275932,1735651834283,-501.80078609,0.00019178,2]
[347275933,1735651834292,-500.0,0.00019178,2]
[347275934,1735651834302,-500.0,0.00019178,2]
[347275935,1735651834312,-500.0,0.00019178,2]
[347275936,1735651834322,-500.0,0.00019178,2]
[347275937,1735651834351,-500.0,0.00019178,2]
[347275938,1735651834362,-500.0,0.00019178,2]
[347275939,1735651834371,-500.0,0.00019178,2]
[347275940,1735651834381,-500.0,0.00019178,2]
[347275941,1735651834391,-500.0,0.00019178,2]
[347275942,1735651834401,-260.86331957,0.00019178,2]
[347275943,1735651834411,-500.0,0.00019178,2]
[347275944,1735651834421,-502.75235413,0.00019178,2]
[347275945,1735651834430,-502.62744368,0.00019178,2]
[347275946,1735651834439,-500.0,0.00019178,2]
[347275947,1735651834449,-500.0,0.00019178,2]
[347275948,1735651834459,-500.0,0.00019178,2]
[347275949,1735651834468,-500.0,0.00019178,2]
[347275950,1735651834478,-500.0,0.00019178,2]
[347275951,1735651834488,-500.0,0.00019178,2]
[347275952,1735651834497,-500.0,0.00019178,2]
[347275953,1735651834507,-500.0,0.00019178,2]
[347275954,1735651834516,-719.78,0.00019178,2]
[347275955,1735651834527,-719.78,0.00019178,2]
[347275956,1735651834536,-719.78,0.00019178,2]
[347275957,1735651834546,-500.0,0.00019178,2]
[347275958,1735651834555,-719.78,0.00019178,2]
[347275959,1735651834565,-719.78,0.00019178,2]
[347275960,1735651834574,-500.0,0.00019178,2]
[347275961,1735651834584,-500.0,0.00019178,2]
[347275962,1735651834596,-500.0,0.00019178,2]
[347275963,1735651834605,-500.0,0.00019178,2]
[347275964,1735651834615,-150.26331925,0.00019178,2]
[347275965,1735651834624,-503.63292405,0.00019178,2]
[347275966,1735651834633,-500.0,0.00019178,2]
[347275967,1735651834642,-500.0,0.00019178,2]
[347275968,1735651834651,-500.0,0.00019178,2]
[347275969,1735651834661,-500.0,0.00019178,2]
[347275970,1735651834670,-500.0,0.00019178,2]
[347275971,1735651834680,-831.88,0.00019178,2]
[347275972,1735651834690,-500.0,0.00019178,2]
[347275973,1735651834699,-500.0,0.00019178,2]
[347275974,1735651834709,-501.69414364,0.00019178,2]
[347275975,1735651834720,-500.0,0.00019178,2]
[347275976,1735651834729,-500.0,0.00019178,2]
[347275977,1735651834738,-500.0,0.00019178,2]
[347275978,1735651834748,-535.67,0.00019178,2]
[347275979,1735651834756,-500.0,0.00019178,2]
[347275980,1735651834766,-500.0,0.00019178,2]
[347275981,1735651834775,-500.0,0.00019178,2]
[347275982,1735651834784,-500.0,0.00019178,2]
[347275983,1735651834793,-500.0,0.00019178,2]
[347275984,1735651834802,-500.0,0.00019178,2]
[347275985,1735651834812,-500.0,0.00019178,2]
[347275986,1735651834822,-500.0,0.00019178,2]
[347275987,1735651834831,-500.0,0.00019178,2]
[347275988,1735651834839,-500.0,0.00019178,2]
[347275989,1735651834864,-500.0,0.00019178,2]
[347275990,1735651834873,-615.83,0.00019178,2]
[347275991,1735651834883,-500.0,0.00019178,2]
[347275992,1735651834893,-500.0,0.00019178,2]
[347275993,1735651834905,-547.79,0.00019178,2]
[347275994,1735651834915,-500.0,0.00019178,2]
[347275995,1735651834924,-500.0,0.00019178,2]
[347275996,1735651834934,-1036.97,0.00019178,2]
[347275997,1735651834944,-500.0,0.00019178,2]
[347275998,1735651834953,-500.0,0.00019178,2]
[347275999,1735651834963,-500.0,0.00019178,2]
[347276000,1735651834972,-500.0,0.00019178,2]
[347276001,1735651834981,-500.0,0.00019178,2]
[347276002,1735651834991,-500.0,0.00019178,2]
[347276003,1735651835000,-502.12767021,0.00019178,2]
[347276004,1735651835009,-500.0,0.00019178,2]
[347276005,1735651835018,-504.84265271,0.00019178,2]
[347276006,1735651835028,-500.0,0.00019178,2]
[347276007,1735651835038,-674.56,0.00019178,2]
[347276008,1735651835047,-530.6003071,0.00019178,2]
[347276009,1735651835057,-500.0,0.00019178,2]
[347276010,1735651835066,-500.0,0.00019178,2]
[347276011,1735651835076,-500.0,0.00019178,2]
[347276012,1735651835085,-500.0,0.00019178,2]
[347276013,1735651835094,-500.0,0.00019178,2]
[347276014,1735651835104,-500.0,0.00019178,2]
[347276015,1735651835115,-500.0,0.00019178,2]
[347276016,1735651835124,-500.0,0.00019178,2]
[347276017,1735651835134,-500.0,0.00019178,2]
[347276018,1735651835143,-490.9,0.00019178,2]
[347276019,1735651835153,-500.0,0.00019178,2]
[347276020,1735651835164,-500.0,0.00019178,2]
[347276021,1735651835176,-500.0,0.00019178,2]
[347276022,1735651835186,-504.92929516,0.00019178,2]
[347276023,1735651835194,-500.0,0.00019178,2]
[347276024,1735651835204,-353.02233929,0.00019178,2]
[347276025,1735651835214,-500.0,0.00019178,2]
[347276026,1735651835224,-500.0,0.00019178,2]
[347276027,1735651835233,-500.0,0.00019178,2]
[347276028,1735651835243,-500.0,0.00019178,2]
[347276029,1735651835253,-500.0,0.00019178,2]
[347276030,1735651835262,-500.0,0.00019178,2]
[347276031,1735651835271,-384.39716623,0.00019178,2]
[347276032,1735651835280,-500.0,0.00019178,2]
[347276033,1735651835289,-500.0,0.00019178,2]
[347276034,1735651835299,-500.0,0.00019178,2]